fUST/lending_fUST_20250918
["ID","MTS","AMOUNT","RATE_DAILY","PERIOD"]
[385957648,1758153039278,-480.0,0.00024143,3]
[385957649,1758153039287,-480.0,0.00024143,3]
[385957650,1758153039296,-587.78796104,0.00024143,3]
[385957651,1758153039305,-574.18,0.00024143,3]
[385957652,1758153039314,-752.57037933,0.00024152,2]
[385957653,1758153039323,-588.87383665,0.00024167,2]
[385957654,1758153039332,-500.0,0.00024173,2]
[385957655,1758153039342,-500.0,0.00024173,2]
[385957656,1758153039351,-186.79279951,0.00024237,2]
[385957657,1758153039360,-480.0,0.00024305,3]
[385957658,1758153039369,-216.24,0.00024305,3]
[385957659,1758153039379,-480.0,0.00024305,3]
[385957660,1758153039388,-480.0,0.00024318,3]
[385957661,1758153039397,-509.85,0.00024318,3]
[385957662,1758153039513,-480.0,0.00024318,3]
[385957663,1758153039524,-1000.0,0.00024321,2]
[385957664,1758153039534,-480.0,0.00024417,3]
[385957665,1758153039549,-440.85,0.00024417,3]
[385957666,1758153039558,-480.0,0.00024417,3]
[385957667,1758153039567,-480.0,0.00024417,3]
[385957668,1758153039577,-480.0,0.00024417,3]
[385957669,1758153039586,-456.6,0.00024417,3]
[385957670,1758153039595,-3543.03,0.00024417,3]
[385957671,1758153039604,-480.0,0.00024417,3]
[385957672,1758153039615,-574.18,0.00024417,3]
[385957673,1758153039624,-1000.0,0.00024421,2]
[385957674,1758153039633,-1000.0,0.00024421,2]
[385957675,1758153039643,-1000.0,0.00024421,2]
[385957676,1758153039651,-186.79279951,0.00024518,2]
[385957677,1758153039660,-480.0,0.00024579,3]
[385957678,1758153039670,-437.60334949,0.00024579,3]
[385957679,1758153039679,-150.0,0.00024592,2]
[385957680,1758153039688,-1312.37,0.00024593,3]
[385957681,1758153039698,-480.0,0.00024691,3]
[385957682,1758153039708,-480.0,0.00024691,3]
[385957683,1758153039717,-3543.03,0.00024691,3]
[385957685,1758153039726,-578.07,0.00024691,3]
[385957687,1758153039735,-574.18,0.00024691,3]
[385957688,1758153039744,-151.0,0.00024793,3]
[385957690,1758153039754,-151.0,0.00024793,3]
[385957692,1758153039764,-151.0,0.00024793,3]
[385957694,1758153039774,-500.0,0.00024793,3]
[385957695,1758153039783,-151.0,0.00024793,3]
[385957696,1758153039793,-151.0,0.00024793,3]
[385957697,1758153039802,-151.0,0.00024793,3]
[385957698,1758153039812,-151.0,0.00024793,3]
[385957700,1758153039821,-151.0,0.00024793,3]
[385957701,1758153039831,-151.0,0.00024793,2]
[385957703,1758153039840,-151.0,0.00024793,3]
[385957705,1758153039850,-151.0,0.00024793,3]
[385957708,1758153039859,-4788.02700455,0.000248,7]
[385957709,1758153039869,-186.79279951,0.000248,2]
[385957712,1758153039878,-2204.66711146,0.000248,2]
[385957713,1758153039887,-8993.28438642,0.000248,2]
[385957715,1758153039897,-1170.1604996,0.0002484,2]
[385957717,1758153039906,-585.0802498,0.0002484,2]
[385957719,1758153039915,-1169.5676745,0.0002484,2]
[385957722,1758153039925,-227.6665279,0.0002484,2]
[385957724,1758153039934,-164.39,0.00024846,8]
[385957726,1758153039943,-480.0,0.00024853,3]
[385957728,1758153039954,-260.80036818,0.00024868,2]
[385957730,1758153039963,-2997.76146214,0.00024872,2]
[385957732,1758153039973,-500.0,0.00024873,2]
[385957734,1758153039981,-500.0,0.00024873,2]
[385957736,1758153039990,-500.0,0.00024873,2]
[385957738,1758153039999,-500.0,0.00024873,2]
[385957740,1758153040008,-13716.00402838,0.00024882,2]
[385957742,1758153040021,-1915.02125384,0.00024882,2]
[385957744,1758153040032,-658.2987274,0.00024882,2]
[385957746,1758153040043,-1097.6853888,0.00024882,2]
[385957748,1758153040054,-1859.49141479,0.00024882,2]
[385957759,1758153040149,-28938.39039019,0.00024882,2]
[385957761,1758153040159,-2997.76146214,0.0002489,2]
[385957763,1758153040168,-155.0,0.00024899,2]
[385957765,1758153040178,-795.30913667,0.000249,2]
[385957767,1758153040187,-2000.0,0.000249,2]
[385957769,1758153040196,-2000.0,0.000249,2]
[385957771,1758153040206,-2000.0,0.000249,2]
[385957773,1758153040215,-2000.0,0.000249,2]
[385957775,1758153040224,-2000.0,0.000249,2]
[385957778,1758153040234,-388.057,0.000249,2]
[385957781,1758153040247,-506.312,0.000249,2]
[385957783,1758153040260,-1000.0,0.000249,2]
[385957785,1758153040269,-1000.0,0.000249,2]
[385957787,1758153040279,-1000.0,0.000249,2]
[385957789,1758153040288,-30684.97213626,0.000249,2]
[385958123,1758153043624,-468.942,0.000249,2]
[385958126,1758153043636,-2826.87817231,0.000249,2]
[385958375,1758153046615,-10785.75208378,0.000249,2]
[385958801,1758153205696,529.98645313,0.000218,2]
[385958802,1758153205783,529.98645298,0.00022983,2]
[385958810,1758153387123,494.65402282,0.000218,2]
[385958811,1758153387225,494.65402278,0.00022983,2]
[385958832,1758153571195,461.67708816,0.000218,2]
[385958833,1758153571298,461.67708792,0.00022983,2]
[385958837,1758153756335,421.01269299,0.000218,2]
[385958838,1758153756473,421.01269281,0.00022983,2]
[385958839,1758153806696,338.6798463,0.00022946,2]
[385958840,1758153819942,1257.6933966,0.00022763,2]
[385958844,1758153948777,393.04503804,0.000218,2]
[385958845,1758153948878,393.04503775,0.00022983,2]
[385958866,1758154142636,366.84203533,0.000218,2]
[385958867,1758154142726,366.84203523,0.00022983,2]
[385958871,1758154232477,-480.18664145,0.00023669,2]
[385958872,1758154232489,-436.3158451,0.00023669,2]
[385958873,1758154232498,-1200.0,0.00023754,2]
[385958874,1758154232508,-1200.0,0.00023755,2]
[385958875,1758154232518,-110.58581152,0.00023755,2]
[385958876,1758154232528,-189.41418848,0.00023755,2]
[385958877,1758154232538,-300.0,0.00023755,2]
[385958878,1758154232547,-300.0,0.00023755,2]
[385958879,1758154232556,-300.0,0.00023755,2]
[385958880,1758154232566,-300.0,0.00023755,2]
[385958881,1758154232575,-6136.97497,0.00023756,2]
[385958882,1758154232585,-480.0,0.00023756,3]
[385958883,1758154232594,-480.0,0.00023756,3]
[385958884,1758154232603,-480.0,0.00023756,3]
[385958885,1758154232612,-480.0,0.00023756,3]
[385958886,1758154232621,-480.0,0.00023756,3]
[385958887,1758154232630,-480.0,0.00023756,3]
[385958888,1758154232640,-480.0,0.00023756,3]
[385958889,1758154232649,-480.0,0.00023756,3]
[385958890,1758154232658,-480.0,0.00023756,3]
[385958891,1758154232668,-480.0,0.00023756,3]
[385958892,1758154232678,-480.0,0.00023756,3]
[385958893,1758154232688,-480.0,0.00023756,3]
[385958894,1758154232697,-480.0,0.00023756,3]
[385958895,1758154232706,-480.0,0.00023756,3]
[385958896,1758154232716,-480.0,0.00023756,3]
[385958897,1758154232725,-480.0,0.00023756,3]
[385958898,1758154232734,-480.0,0.00023756,3]
[385958899,1758154232744,-480.0,0.00023756,3]
[385958900,1758154232753,-480.0,0.00023756,3]
[385958901,1758154232762,-480.0,0.00023756,3]
[385958902,1758154232772,-480.0,0.00023756,3]
[385958903,1758154232781,-480.0,0.00023756,3]
[385958904,1758154232791,-480.0,0.00023756,3]
[385958905,1758154232800,-480.0,0.00023756,3]
[385958906,1758154232810,-480.0,0.00023756,3]
[385958907,1758154232820,-480.0,0.00023756,3]
[385958908,1758154232831,-480.0,0.00023756,3]
[385958909,1758154232841,-480.0,0.00023757,3]
[385958910,1758154232853,-500.0,0.00023757,3]
[385958911,1758154232863,-480.0,0.00023757,3]
[385958912,1758154232873,-480.0,0.00023769,3]
[385958913,1758154232882,-480.0,0.00023769,3]
[385958914,1758154232891,-480.0,0.00023769,3]
[385958915,1758154232900,-480.0,0.00023769,3]
[385958916,1758154232909,-480.0,0.00023769,3]
[385958917,1758154232918,-480.2785542,0.00023769,2]
[385958918,1758154232929,-480.0,0.00023769,3]
[385958919,1758154232939,-480.0,0.00023769,3]
[385958920,1758154232948,-480.0,0.00023769,3]
[385958921,1758154232958,-480.0,0.00023769,3]
[385958922,1758154232968,-480.0,0.00023769,3]
[385958923,1758154232982,-480.0,0.00023769,3]
[385958924,1758154232992,-480.0,0.00023769,3]
[385958925,1758154233001,-480.0,0.00023769,3]
[385958926,1758154233010,-480.0,0.00023769,3]
[385958927,1758154233020,-480.0,0.00023769,3]
[385958928,1758154233030,-505.34250469,0.00023769,3]
[385958929,1758154233040,-480.0,0.00023769,3]
[385958930,1758154233049,-480.0,0.00023769,3]
[385958931,1758154233059,-480.0,0.00023769,3]
[385958932,1758154233069,-590.24,0.00023769,3]
[385958933,1758154233079,-480.0,0.00023769,3]
[385958934,1758154233089,-480.0,0.00023769,3]
[385958935,1758154233098,-480.0,0.00023769,3]
[385958936,1758154233107,-480.0,0.00023769,3]
[385958937,1758154233117,-480.0,0.00023769,3]
[385958938,1758154233127,-480.0,0.00023769,3]
[385958939,1758154233136,-584.83644283,0.00023769,3]
[385958940,1758154233146,-480.0,0.00023769,3]
[385958941,1758154233155,-480.0,0.00023769,3]
[385958942,1758154233165,-360.29770667,0.00023769,3]
[385958943,1758154233174,-480.0,0.0002377,3]
[385958944,1758154233184,-480.0,0.0002377,3]
[385958945,1758154233193,-480.0,0.0002377,3]
[385958946,1758154233203,-480.0,0.0002377,3]
[385958947,1758154233212,-513.11432176,0.0002377,3]
[385958948,1758154233222,-163.8184653,0.00024006,2]
[385958949,1758154233231,-480.0,0.0002403,3]
[385958950,1758154233240,-480.0,0.0002403,3]
[385958951,1758154233250,-480.0,0.0002403,3]
[385958952,1758154233259,-480.0,0.0002403,3]
[385958953,1758154233268,-480.0,0.0002403,3]
[385958954,1758154233278,-480.0,0.0002403,3]
[385958955,1758154233287,-480.0,0.0002403,3]
[385958956,1758154233297,-480.0,0.0002403,3]
[385958957,1758154233306,-480.0,0.0002403,3]
[385958958,1758154233316,-480.0,0.0002403,3]
[385958959,1758154233325,-480.0,0.0002403,3]
[385958960,1758154233335,-480.0,0.0002403,3]
[385958961,1758154233346,-480.0,0.0002403,3]
[385958962,1758154233358,-480.0,0.0002403,3]
[385958963,1758154233370,-480.0,0.0002403,3]
[385958964,1758154233382,-480.0,0.0002403,3]
[385958965,1758154233394,-480.0,0.0002403,3]
[385958966,1758154233406,-480.0,0.0002403,3]
[385958967,1758154233417,-480.0,0.0002403,3]
[385958968,1758154233428,-480.0,0.0002403,3]
[385958969,1758154233439,-480.0,0.0002403,3]
[385958970,1758154233449,-480.0,0.0002403,3]
[385958971,1758154233461,-603.6,0.0002403,3]
[385958972,1758154233472,-480.0,0.0002403,3]
[385958973,1758154233483,-480.0,0.0002403,3]
[385958974,1758154233494,-480.0,0.0002403,3]
[385958975,1758154233505,-480.0,0.0002403,3]
[385958976,1758154233517,-480.0,0.00024031,3]
[385958977,1758154233528,-480.0,0.00024031,3]
[385958978,1758154233539,-480.0,0.00024043,3]
[385958979,1758154233551,-199.62212359,0.00024043,3]
[385958980,1758154233562,-360.4264826,0.00024043,3]
[385958981,1758154233573,-316.29654233,0.00024043,3]
[385958982,1758154233588,-163.70345767,0.00024043,3]
[385958983,1758154233599,-480.0,0.00024043,3]
[385958984,1758154233611,-480.0,0.00024043,3]
[385958985,1758154233622,-273.69337772,0.00024043,3]
[385958986,1758154233637,-300.03779617,0.00024043,3]
[385958987,1758154233649,-168.58953213,0.00024043,3]
[385958993,1758154238743,-217.90857035,0.00023756,3]
[385958994,1758154238755,-1077.65,0.00023868,3]
[385958995,1758154238766,-24.52046787,0.00024043,3]
[385958996,1758154238778,-480.0,0.00024043,3]
[385958997,1758154238790,-480.0,0.00024043,3]
[385958998,1758154238802,-480.0,0.00024043,3]
[385958999,1758154238814,-480.0,0.00024043,3]
[385959000,1758154238828,-480.0,0.00024043,3]
[385959001,1758154238839,-480.0,0.00024043,3]
[385959002,1758154238851,-480.0,0.00024043,3]
[385959003,1758154238865,-342.3,0.00024043,3]
[385959004,1758154238876,-480.0,0.00024043,3]
[385959005,1758154238887,-291.33683832,0.00024043,3]
[385959006,1758154238902,-188.66316168,0.00024043,3]
[385959007,1758154238914,-480.0,0.00024043,3]
[385959008,1758154238925,-480.0,0.00024043,3]
[385959009,1758154238937,-155.5031994,0.00024044,3]
[385959010,1758154238950,-275.67508081,0.00024044,3]
[385959011,1758154238964,-48.82171979,0.00024044,3]
[385959012,1758154238976,-480.0,0.00024044,3]
[385959013,1758154238988,-480.0,0.00024044,3]
[385959014,1758154239001,-480.0,0.00024044,3]
[385959015,1758154239012,-312.60051514,0.00024073,2]
[385959016,1758154239022,-261.27050269,0.0002412,2]
[385959017,1758154239032,-501.71358622,0.00024152,2]
[385959018,1758154239042,-366.84203523,0.00024167,2]
[385959019,1758154239053,-309.706372,0.000242,2]
[385959020,1758154239063,-310.8572562,0.000242,2]
[385959021,1758154239073,-585.0802498,0.000242,2]
[385959022,1758154239084,-152.4686359,0.000242,2]
[385959023,1758154239095,-585.0802498,0.000242,2]
[385959024,1758154239105,-296.1413275,0.000242,2]
[385959025,1758154239114,-480.0,0.00024304,3]
[385959026,1758154239124,-480.0,0.00024304,3]
[385959027,1758154239134,-480.0,0.00024304,3]
[385959028,1758154239144,-480.0,0.00024304,3]
[385959029,1758154239154,-480.0,0.00024304,3]
[385959030,1758154239164,-480.0,0.00024304,3]
[385959031,1758154239175,-480.0,0.00024304,3]
[385959032,1758154239185,-480.0,0.00024304,3]
[385959033,1758154239195,-603.50109133,0.00024304,3]
[385959034,1758154239205,-480.0,0.00024304,3]
[385959035,1758154239215,-480.0,0.00024304,3]
[385959036,1758154239226,-480.0,0.00024304,3]
[385959037,1758154239237,-480.0,0.00024304,3]
[385959038,1758154239247,-480.0,0.00024304,3]
[385959039,1758154239259,-480.0,0.00024304,3]
[385959040,1758154239269,-190.84191117,0.00024304,3]
[385959041,1758154239279,-480.0,0.00024304,3]
[385959042,1758154239289,-480.0,0.00024304,3]
[385959043,1758154239299,-480.0,0.00024304,3]
[385959044,1758154239310,-480.0,0.00024304,3]
[385959045,1758154239321,-480.0,0.00024304,3]
[385959046,1758154239330,-480.0,0.00024304,3]
[385959047,1758154239340,-480.0,0.00024305,3]
[385959048,1758154239350,-480.0,0.00024305,3]
[385959049,1758154239360,-480.0,0.00024317,3]
[385959050,1758154239370,-480.0,0.00024317,3]
[385959051,1758154239381,-480.0,0.00024317,3]
[385959052,1758154239391,-480.0,0.00024317,3]
[385959053,1758154239401,-480.0,0.00024317,3]
[385959054,1758154239411,-494.81090563,0.00024317,3]
[385959055,1758154239421,-480.0,0.00024317,3]
[385959056,1758154239432,-480.0,0.00024317,3]
[385959057,1758154239442,-480.0,0.00024317,3]
[385959058,1758154239562,-609.00374922,0.00024317,3]
[385959059,1758154239574,-480.0,0.00024317,3]
[385959060,1758154239585,-503.54,0.00024317,3]
[385959061,1758154239594,-480.0,0.00024317,3]
[385959062,1758154239604,-2133.12,0.00024317,2]
[385959063,1758154239613,-480.0,0.00024317,3]
[385959064,1758154239623,-480.0,0.00024318,3]
[385959065,1758154239632,-480.0,0.00024318,3]
[385959066,1758154239641,-480.0,0.00024318,3]
[385959067,1758154239650,-480.0,0.00024318,3]
[385959068,1758154239660,-500.0,0.00024373,2]
[385959069,1758154239669,-500.0,0.00024373,2]
[385959070,1758154239679,-500.0,0.00024373,2]
[385959071,1758154239689,-575.05668545,0.00024373,2]
[385959072,1758154239698,-480.0,0.00024578,3]
[385959073,1758154239707,-480.0,0.00024578,3]
[385959074,1758154239716,-480.0,0.00024578,3]
[385959075,1758154239725,-480.0,0.00024578,3]
[385959076,1758154239734,-614.1,0.00024578,3]
[385959077,1758154239744,-480.0,0.00024578,3]
[385959078,1758154239753,-480.0,0.00024578,3]
[385959079,1758154239763,-480.0,0.00024578,3]
[385959080,1758154239772,-480.0,0.00024578,3]
[385959081,1758154239781,-480.0,0.00024578,3]
[385959082,1758154239791,-480.0,0.00024578,3]
[385959083,1758154239800,-480.0,0.00024578,3]
[385959084,1758154239809,-480.0,0.00024578,3]
[385959085,1758154239819,-235.24,0.00024578,3]
[385959086,1758154239828,-480.0,0.00024579,3]
[385959087,1758154239837,-480.0,0.00024579,3]
[385959088,1758154239846,-480.0,0.00024591,3]
[385959089,1758154239860,-480.0,0.00024591,3]
[385959090,1758154239869,-480.0,0.00024591,3]
[385959091,1758154239879,-480.0,0.00024591,3]
[385959092,1758154239888,-480.0,0.00024591,3]
[385959093,1758154239898,-515.32,0.00024591,3]
[385959094,1758154239907,-480.0,0.00024591,3]
[385959095,1758154239916,-480.0,0.00024591,3]
[385959096,1758154239926,-480.0,0.00024592,3]
[385959097,1758154239935,-480.0,0.00024592,3]
[385959098,1758154239945,-480.0,0.00024592,3]
[385959099,1758154239954,-480.0,0.00024592,3]
[385959100,1758154239964,-151.0,0.00024793,3]
[385959101,1758154239973,-500.0,0.00024793,3]
[385959102,1758154239982,-163.0,0.00024793,3]
[385959103,1758154239991,-151.0,0.00024793,3]
[385959104,1758154240001,-151.0,0.00024793,3]
[385959105,1758154240010,-151.0,0.00024793,3]
[385959107,1758154240019,-151.0,0.00024793,2]
[385959109,1758154240029,-151.0,0.00024793,3]
[385959111,1758154240038,-255.1841645,0.00024793,3]
[385959112,1758154240047,-2248.32109661,0.000248,2]
[385959113,1758154240056,-1469.77807432,0.000248,2]
[385959114,1758154240065,-161.9493691,0.0002484,2]
[385959115,1758154240075,-161.9493691,0.0002484,2]
[385959116,1758154240086,-161.9493691,0.0002484,2]
[385959117,1758154240096,-161.9493691,0.0002484,2]
[385959118,1758154240105,-161.9493691,0.0002484,2]
[385959119,1758154240114,-161.9493691,0.0002484,2]
[385959120,1758154240124,-161.9493691,0.0002484,2]
[385959122,1758154240134,-161.9493691,0.0002484,2]
[385959124,1758154240143,-161.9493691,0.0002484,2]
[385959126,1758154240152,-161.9493691,0.0002484,2]
[385959128,1758154240162,-161.9493691,0.0002484,2]
[385959130,1758154240171,-161.9493691,0.0002484,2]
[385959132,1758154240180,-161.8674926,0.0002484,2]
[385959134,1758154240190,-201.39190163,0.0002485,2]
[385959136,1758154240199,-585.0802498,0.00024851,2]
[385959138,1758154240208,-296.1413275,0.00024851,2]
[385959140,1758154240218,-296.1413275,0.00024851,2]
[385959142,1758154240227,-585.0802498,0.00024851,2]
[385959144,1758154240236,-161.9493691,0.00024851,2]
[385959146,1758154240245,-161.9493691,0.00024851,2]
[385959148,1758154240255,-161.9493691,0.00024851,2]
[385959149,1758154240264,-161.9493691,0.00024851,2]
[385959150,1758154240273,-480.0,0.00024852,3]
[385959151,1758154240283,-524.62,0.00024852,3]
[385959152,1758154240292,-268.96,0.00024852,3]
[385959153,1758154240302,-480.0,0.00024852,3]
[385959154,1758154240311,-506.04,0.00024852,3]
[385959155,1758154240320,-480.0,0.00024853,3]
[385959156,1758154240330,-507.17,0.00024865,3]
[385959157,1758154240340,-2248.32109661,0.00024868,2]
[385959158,1758154240349,-5889.49073389,0.00024878,2]
[385959159,1758154240467,-1077.65,0.00024142,3]
[385959160,1758154240476,-1077.65,0.00024416,3]
[385959161,1758154240486,-1077.65,0.0002469,3]
[385959162,1758154240495,-166.23321268,0.00024877,2]
[385959163,1758154240505,-504.74085372,0.00024877,2]
[385959164,1758154240514,-920.65439539,0.00024878,2]
[385959170,1758154243533,-480.0,0.00023756,3]
[385959171,1758154243542,-480.0,0.0002403,3]
[385959172,1758154243551,-480.0,0.00024304,3]
[385959173,1758154243561,-3520.83843272,0.00024878,2]
[385959174,1758154243570,-14223.8651674,0.0002489,2]
[385959175,1758154243581,-543.70200408,0.0002489,2]
[385959176,1758154243592,-1021.14099215,0.0002489,2]
[385959180,1758154246427,-480.0,0.00024578,3]
[385959181,1758154246437,-480.0,0.00024852,3]
[385959182,1758154246447,-2197.86060927,0.0002489,2]
[385959183,1758154246457,-480.0,0.00024899,3]
[385959184,1758154246468,-480.0,0.00024899,3]
[385959185,1758154246477,-367.47922523,0.00024899,3]
[385959186,1758154246577,-3014.74077477,0.00024899,3]
[385959187,1758154246586,-480.0,0.00024899,3]
[385959188,1758154246595,-397.65456833,0.000249,2]
[385959189,1758154246604,-19379.6046569,0.000249,2]
[385959190,1758154246615,-3675.36504122,0.000249,2]
[385959191,1758154246625,-2444.57529979,0.000249,2]
[385959192,1758154246756,-3623.01936736,0.000249,2]
[385959193,1758154333436,336.93978498,0.000218,2]
[385959194,1758154333552,336.93978493,0.00022983,2]
[385959197,1758154522927,314.4738027,0.000218,2]
[385959198,1758154523027,314.47380242,0.00022983,2]
[385959199,1758154708296,293.49813308,0.000218,2]
[385959200,1758154708390,293.49813302,0.00022983,2]
[385959202,1758154812859,411.0,0.00028,30]
[385959203,1758154902284,273.92303954,0.000218,2]
[385959204,1758154902316,273.92303944,0.00022983,2]
[385959205,1758155096594,257.8856507,0.000218,2]
[385959206,1758155096674,257.88565053,0.00022983,2]
[385959225,1758155304251,242.30703099,0.000218,2]
[385959226,1758155304371,242.3070307,0.00022983,2]
[385959269,1758155432359,-2331.4,0.00023545,2]
[385959271,1758155432369,-1200.0,0.0002375,2]
[385959273,1758155432378,-1200.0,0.00023751,2]
[385959275,1758155432388,-300.0,0.00023751,2]
[385959277,1758155432397,-300.0,0.00023751,2]
[385959279,1758155432406,-272.0,0.00023751,2]
[385959281,1758155432415,-210.0,0.00023751,2]
[385959283,1758155432424,-7808.5763851,0.00023752,2]
[385959286,1758155432437,-643.17025537,0.00023752,2]
[385959288,1758155432448,-918.02637208,0.00023752,2]
[385959372,1758155440406,-4075.79575206,0.00023752,2]
[385959374,1758155440415,-480.0,0.00023755,3]
[385959376,1758155440425,-366.72403157,0.00023755,3]
[385959378,1758155440434,-480.0,0.00023755,3]
[385959380,1758155440444,-480.0,0.00023756,3]
[385959382,1758155440453,-480.0,0.00023756,3]
[385959384,1758155440462,-807.34350539,0.00023929,2]
[385959386,1758155440472,-480.0,0.00023942,3]
[385959388,1758155440482,-480.0,0.00023942,3]
[385959390,1758155440491,-480.0,0.00023942,3]
[385959392,1758155440500,-480.0,0.00023942,3]
[385959394,1758155440509,-480.0,0.00023942,3]
[385959396,1758155440518,-480.0,0.00023942,3]
[385959398,1758155440527,-480.0,0.00023942,3]
[385959400,1758155440535,-846.25751443,0.00023942,3]
[385959402,1758155440544,-480.0,0.00023942,3]
[385959404,1758155440553,-480.0,0.00024027,3]
[385959406,1758155440562,-480.0,0.00024027,3]
[385959408,1758155440572,-480.0,0.00024027,3]
[385959410,1758155440581,-480.0,0.00024027,3]
[385959412,1758155440590,-480.0,0.00024027,3]
[385959414,1758155440599,-480.0,0.00024027,3]
[385959416,1758155440609,-480.0,0.00024027,3]
[385959418,1758155440618,-480.0,0.00024028,3]
[385959420,1758155440627,-480.0,0.00024028,3]
[385959422,1758155440636,-480.0,0.00024028,3]
[385959424,1758155440646,-480.0,0.00024028,3]
[385959426,1758155440655,-480.0,0.00024028,3]
[385959428,1758155440663,-480.0,0.00024028,3]
[385959430,1758155440673,-480.0,0.00024028,3]
[385959432,1758155440682,-480.0,0.00024028,3]
[385959434,1758155440691,-480.0,0.00024028,3]
[385959436,1758155440700,-480.0,0.00024028,3]
[385959438,1758155440709,-480.0,0.00024028,3]
[385959440,1758155440718,-480.0,0.00024028,3]
[385959442,1758155440727,-480.0,0.00024028,3]
[385959444,1758155440736,-480.0,0.00024028,3]
[385959446,1758155440745,-480.0,0.00024028,3]
[385959448,1758155440754,-191.55616529,0.00024028,3]
[385959450,1758155440763,-480.0,0.00024028,3]
[385959452,1758155440772,-596.74,0.00024028,3]
[385959454,1758155440781,-480.0,0.00024028,3]
[385959456,1758155440791,-462.52019847,0.00024028,3]
[385959458,1758155440800,-480.0,0.00024029,3]
[385959460,1758155440808,-480.0,0.00024029,3]
[385959462,1758155440818,-247.94955787,0.00024029,3]
[385959464,1758155440826,-480.0,0.00024029,3]
[385959466,1758155440835,-480.0,0.00024029,3]
[385959468,1758155440844,-480.0,0.00024029,3]
[385959470,1758155440853,-480.0,0.00024029,3]
[385959472,1758155440862,-1420.02,0.00024029,3]
[385959474,1758155440872,-480.0,0.0002403,3]
[385959476,1758155440882,-7.46367025,0.0002403,3]
[385959922,1758155446324,-480.0,0.00024027,3]
[385959923,1758155446334,-480.0,0.00024027,3]
[385959924,1758155446343,-472.53632975,0.0002403,3]
[385959925,1758155446352,-378.61297364,0.00024073,2]
[385959926,1758155446361,-500.0,0.00024073,2]
[385959927,1758155446371,-500.0,0.00024073,2]
[385959928,1758155446380,-334.47572414,0.00024152,2]
[385959929,1758155446389,-242.3070307,0.00024167,2]
[385959930,1758155446399,-281.85604876,0.00024216,3]
[385959931,1758155446408,-480.0,0.00024216,3]
[385959932,1758155446417,-480.0,0.00024216,3]
[385959933,1758155446426,-279.27487314,0.00024216,3]
[385959934,1758155446438,-200.72512686,0.00024216,3]
[385959935,1758155446447,-480.0,0.00024216,3]
[385959936,1758155446456,-480.0,0.00024216,3]
[385959937,1758155446466,-480.0,0.00024216,3]
[385959938,1758155446476,-90.85886726,0.00024216,3]
[385959942,1758155487476,1220.0,0.00030278,120]
[385959943,1758155494370,218.07632763,0.000218,2]
[385959944,1758155494477,218.07632763,0.00022983,2]
[385959945,1758155688730,203.41682598,0.000218,2]
[385959946,1758155688816,203.41682589,0.00022983,2]
[385959947,1758155879408,206.09811493,0.000218,2]
[385959948,1758155879685,206.09811472,0.00023026,2]
[385959951,1758156070581,206.09811472,0.000218,2]
[385959952,1758156070654,206.09811472,0.0002312,2]
[385959953,1758156250842,206.09811472,0.000218,2]
[385959963,1758156438817,206.09811472,0.000218,2]
[385959967,1758156627632,202.10257448,0.000218,2]